Cogmind - Beta 10.1 @@@ ROGUE MODE // 2020.10.04 @ 20:16:04 Player: gorlork Result: Destroyed by G-34 Mercenary with Small Laser Performance ------------- Evolutions (1) 500 Regions Visited (3) 600 Robots Destroyed (15) 75 Value Destroyed (189) 189 Prototype IDs (0) 0 Alien Tech Used (0) 0 Bonus (24) 24 TOTAL SCORE: 1388 Bonus ------- Follower Combat Kills 66 Friendly Fire -42 Cogmind --------- Core Integrity 0/400 Matter 290/300 Energy 261/265 System Corruption 0% Temperature Cool (8) Movement Treading (160) Location -9/Storage Parts ------- > --- POWER (1) -------- Improved Ion Engine > --- PROPULSION (2) --- Light Treads Improved Treads > --- UTILITY (4) ------ Structural Scanner Visual Processing Unit Light Armor Plating > --- WEAPON (2) ------- Beam Rifle Heavy Assault Rifle > --- INVENTORY (4) ---- Drone Bay (2/2) Drone Bay (2/2) Rocket Launcher Rocket Launcher Peak State ------------ > --- POWER ------------ Improved Ion Engine > --- PROPULSION ------- Light Treads Improved Treads > --- UTILITY ---------- Structural Scanner Visual Processing Unit Light Armor Plating > --- WEAPON ----------- Beam Rifle Heavy Assault Rifle > --- INVENTORY -------- Drone Bay Drone Bay Rocket Launcher Rocket Launcher [Rating: 14] Favorites ----------- Power Ion Engine Engine Ion Engine Propulsion Light Treads Treads Light Treads Utility Seismic Analyzer Device Improved Terrain Scanner Processor Seismic Analyzer Protection Light Armor Plating Weapon EM Pulse Gun Energy Gun EM Pulse Gun Ballistic Gun Shotgun Special Weapon Mining Laser Build | -11 -10 -9 -9 ------- Run | Scr Mat Mat Sto Slots Evolved 2 | . . 2 . Power . | . . . . Propulsion . | . . . . Utility 2 | . . 2 . Weapon . | . . . . Parts Attached 24 | 7 5 3 9 Power 2 | 1 . . 1 Engine 2 | 1 . . 1 Core . | . . . . Reactor . | . . . . Propulsion 6 | 2 . . 4 Treads 6 | 2 . . 4 Leg . | . . . . Wheel . | . . . . Hover . | . . . . Flight . | . . . . Utility 6 | 2 . 2 2 Device 3 | 1 . 1 1 Storage . | . . . . Processor 2 | 1 . 1 . Hackware . | . . . . Protection 1 | . . . 1 Artifact . | . . . . Weapon 10 | 2 5 1 2 Energy Gun 4 | 2 1 . 1 Energy Cannon . | . . . . Ballistic Gun 3 | . 2 . 1 Ballistic Cannon . | . . . . Launcher . | . . . . Special Weapon 3 | . 2 1 . Impact Weapon . | . . . . Slashing Weapon . | . . . . Piercing Weapon . | . . . . Special Melee Weapon . | . . . . Unidentified Prototypes . | . . . . Parts Lost 6 | . 1 5 . Power . | . . . . Propulsion 2 | . . 2 . Utility 1 | . . 1 . Weapon 3 | . 1 2 . Highest Loss Streak 5 | . 1 5 . Average Slot Usage (%) 81 | . 95 77 63 Engine 11 | . 14 9 7 Treads 21 | . 28 18 14 Device 13 | . 14 19 8 Processor 15 | . 14 22 13 Protection 1 | . . . 4 Energy Gun 10 | . 17 . 7 Ballistic Gun 5 | . 2 8 7 Special Weapon 1 | . 3 . . Naked Turns . | . . . . Heaviest Build 17 | 10 11 10 17 Greatest Support 43 | 40 40 40 43 Greatest Overweight (x) 2 | . . 1 2 Average Overweight (x) . | . . . . Largest Inventory Capacity 4 | 4 4 4 4 Average Capacity 4 | 4 4 4 4 Most Carried 4 | 2 4 2 4 Average Carried 1 | . 2 . 3 Final Capacity 4 | 4 4 4 4 Final Carried 4 | 1 3 . 4 Class Distribution -------------------- 85% | Mutant 14% | Scavenger-Mutant Dominant Class ---------------- Mutant | -10/Materials Mutant | -9/Materials Scavenger-Mutant | -9/Storage Resources | -11 -10 -9 -9 ----------- Run | Scr Mat Mat Sto Matter Collected 411 | 270 58 . 83 Remotely . | . . . . Salvage Created 479 | 231 222 . 26 Parts 35 | 21 11 . 3 Haulers Intercepted . | . . . . Recyclers Shooed 1 | 1 . . . Parts Field Recycled . | . . . . Retrieved Matter . | . . . . Parts Self-Destructed . | . . . . Prevented . | . . . . Kills | -11 -10 -9 -9 ------- Run | Scr Mat Mat Sto Combat Hostiles Destroyed 3 | . 3 . . Guns 1 | . 1 . . AOE 2 | . 2 . . Classes Destroyed 5 | 3 2 . . Worker 2 | 2 . . . Builder 3 | . 2 . 1 Tunneler 5 | 5 . . . Recycler 2 | 1 1 . . Grunt 3 | . 3 . . Best Kill Streak 3 | 3 3 . 1 Combat Bots Only 2 | . 2 . . Max Kills in Single Turn 2 | 1 2 . 1 Gunslinging . | . . . . Exploded 2 | . 2 . . Melee . | . . . . Uniques/NPCs Destroyed . | . . . . Combat | -11 -10 -9 -9 -------- Run | Scr Mat Mat Sto Damage Taken 1055 | . 386 623 46 Core 463 | . 63 371 29 Absorbed by Shields . | . . . . Core Remaining (%) 87 | 100 74 . . Volleys Fired 40 | 13 21 5 1 Largest 2 | 2 2 1 2 Hottest 100 | 90 100 23 79 Shots Fired 67 | 26 34 5 2 Gun 65 | 26 32 5 2 Cannon . | . . . . Launcher . | . . . . Special 2 | . 2 . . Kinetic 14 | . 8 5 1 Thermal 27 | 13 13 . 1 Explosive . | . . . . Electromagnetic 26 | 13 13 . . Robot Hit Streak 10 | 5 7 10 1 Robot Miss Streak 2 | 2 2 2 1 Penetration Max . | . . . . Secondary Targets . | . . . . Shots Hit Robots 48 | 16 26 5 1 Core Hits 32 | 9 12 10 1 Critical Hits . | . . . . Critical Kills . | . . . . Critical Parts Destroyed . | . . . . Melee Attacks . | . . . . Impact . | . . . . Slashing . | . . . . Piercing . | . . . . Sneak Attacks . | . . . . Combat Hostiles . | . . . . Follow-up Attacks . | . . . . Damage Inflicted 1121 | 273 687 132 29 Guns 708 | 234 369 76 29 Cannons . | . . . . Explosions 357 | 39 318 . . Melee . | . . . . Ramming 56 | . . 56 . Kinetic 214 | . 124 76 14 Thermal 255 | 128 112 . 15 Explosive 295 | . 295 . . Electromagnetic 301 | 145 156 . . Impact . | . . . . Slashing . | . . . . Piercing . | . . . . Highest Corruption . | . . . . Average Corruption . | . . . . Corruption Purged . | . . . . Overload Shots . | . . . . Overflow Damage 16 | . 16 . . Projectiles . | . . . . Explosions 16 | . 16 . . Melee . | . . . . Knockbacks . | . . . . Impact . | . . . . Kinetic . | . . . . Secondary . | . . . . Self-Inflicted Damage 119 | . 101 18 . Shots 1 | . 1 . . Rammed 20 | . . 20 . Targets Rammed 20 | . . 20 . Kicked . | . . . . Crushed . | . . . . Highest Temperature 210 | 210 210 . 12 Average Temperature 59 | 70 53 . 8 Received Heat Transfer 360 | . 159 195 6 Siege Activations . | . . . . Robots Corrupted . | . . . . Combat Hostiles . | . . . . Parts Fried . | . . . . Impact Corruptions . | . . . . Robots Melted . | . . . . Combat Hostiles . | . . . . Parts Melted 2 | 1 1 . . Heat Transferred 605 | 259 309 . 37 Parts Sabotaged . | . . . . Parts Stolen . | . . . . Parts Stripped . | . . . . Power Chain Reactions 2 | 1 1 . . Missiles Intercepted . | . . . . Alert | -11 -10 -9 -9 ------- Run | Scr Mat Mat Sto Peak Influence 121 | 40 85 80 121 Initial 35 | . 26 35 18 Average 52 | 25 54 52 76 Maximum Alert Level . | . . . . Low Security (%) 100 | 100 100 100 100 Level 1 . | . . . . Level 2 . | . . . . Level 3 . | . . . . Level 4 . | . . . . Level 5 . | . . . . High Security . | . . . . Max Security . | . . . . Squads Dispatched 3 | . 2 1 . Investigation 1 | . 1 . . Extermination . | . . . . Reinforcement 2 | . 1 1 . Assault . | . . . . Garrison . | . . . . Intercept . | . . . . Construction Impeded . | . . . . Haulers Reinforced . | . . . . Stealth | -11 -10 -9 -9 --------- Run | Scr Mat Mat Sto Distress Signals 3 | . 1 1 1 Communications Jammed . | . . . . Distress Signals . | . . . . Times Spotted 19 | . 6 8 5 Peak Tracking Total 7 | . 3 7 1 Tactical Retreats . | . . . . Traps | -11 -10 -9 -9 ------- Run | Scr Mat Mat Sto Traps Triggered . | . . . . Indirectly . | . . . . Trap Hack Attempts . | . . . . Triggered . | . . . . Disarmed . | . . . . Reprogrammed . | . . . . Reused . | . . . . Traps Extracted . | . . . . Installed . | . . . . Triggered 1 | . 1 . . Machines | -11 -10 -9 -9 ---------- Run | Scr Mat Mat Sto Machines Disabled 1 | . 1 . . Max in Single Turn 1 | . 1 . . Machines Sabotaged . | . . . . Garrisons Compromised . | . . . . Overloaded Fab Kills . | . . . . Fab Network Shutdowns . | . . . . Hacking | -11 -10 -9 -9 --------- Run | Scr Mat Mat Sto Machines Accessed 4 | . . 1 3 Terminals 3 | . . 1 2 Fabricators . | . . . . Repair Stations . | . . . . Recycling Units 1 | . . . 1 Scanalyzers . | . . . . Garrison Access . | . . . . Total Hacks 6 | . . 2 4 Successful 5 | . . 2 3 Failed 1 | . . . 1 Catastrophic . | . . . . Database Lockouts . | . . . . Manual . | . . . . Terminals 5 | . . 2 3 Fabricators . | . . . . Repair Stations . | . . . . Recycling Units 1 | . . . 1 Scanalyzers . | . . . . Garrison Access . | . . . . Terminal Hacks 4 | . . 2 2 Record 4 | . . 2 2 Fabricator Hacks . | . . . . Repair Station Hacks . | . . . . Recycling Unit Hacks 1 | . . . 1 Report Inventory 1 | . . . 1 Scanalyzer . | . . . . Garrison Access Hacks . | . . . . Unauthorized Hacks . | . . . . Terminals . | . . . . Fabricators . | . . . . Repair Stations . | . . . . Recycling Units . | . . . . Scanalyzers . | . . . . Garrison Access . | . . . . Data Cores Recovered . | . . . . Used . | . . . . Hacking Detections 2 | . . 1 1 Full Trace Events . | . . . . Feedback Events . | . . . . Feedback Blocked . | . . . . Robot Schematics Acquired . | . . . . Robots Built . | . . . . Matter . | . . . . Time . | . . . . Total Robot Build Rating . | . . . . Part Schematics Acquired . | . . . . Parts Built . | . . . . Matter . | . . . . Time . | . . . . Total Part Build Rating . | . . . . Parts Repaired . | . . . . Time . | . . . . Parts Recycled . | . . . . Recycled Matter . | . . . . Retrieved Matter . | . . . . Retrieved Components . | . . . . Parts Scanalyzed . | . . . . Part Schematics Acquired . | . . . . Parts Damaged . | . . . . Bothacking | -11 -10 -9 -9 ------------ Run | Scr Mat Mat Sto Used RIF Installer . | . . . . Robots Hacked . | . . . . Non-combat . | . . . . Combat . | . . . . Robot Hacks Applied . | . . . . Relay Couplers Released . | . . . . Robots Rewired . | . . . . Allies Hacked . | . . . . Hacks Repelled . | . . . . Allies | -11 -10 -9 -9 -------- Run | Scr Mat Mat Sto Total Allies 1 | . . . 1 Largest Group 1 | . . . 1 Highest-Rated Group 99 | . . . 99 Highest-Rated Ally 99 | . . . 99 Total Orders . | . . . . Ally Attacks 4 | . . . 4 Total Damage 76 | . . . 76 Kills 3 | . . . 3 Allies Corrupted . | . . . . Allies Melted . | . . . . Intel | -11 -10 -9 -9 ------- Run | Scr Mat Mat Sto Robot Analysis Total . | . . . . Derelict Logs Recovered . | . . . . Drone Launches . | . . . . Drone Recoveries . | . . . . Exploration | -11 -10 -9 -9 ------------- Run | Scr Mat Mat Sto Turns Passed 1179 | 250 446 223 260 Spaces Moved 620 | 125 188 135 172 Core 127 | 3 . 38 86 Treads 493 | 122 188 97 86 Legs . | . . . . Wheels . | . . . . Hover . | . . . . Flight . | . . . . Fastest Speed 50 | 50 160 50 50 Average Speed 138 | 157 160 132 105 Slowest Speed 160 | 160 160 160 160 Overloaded Moves . | . . . . Propulsion Burnouts . | . . . . Robots Hopped . | . . . . Cave-ins Triggered . | . . . . Exploration Rate (%) 16 | 6 27 11 20 Regions Visited 3 Branch Regions 1 Pre-discovered Areas . | . . . . Known Exits Taken . | . . . . Unknown Exits Taken 3 | 1 1 1 . Scrap Searched . | . . . . Spaces Dug 2 | . 2 . . Terrain Destroyed 36 | . 36 . . Melee . | . . . . Projectile 2 | . 2 . . AOE 34 | . 34 . . Terrain Rammed . | . . . . Walls Destroyed . | . . . . Machines Disabled . | . . . . Actions | -11 -10 -9 -9 --------- Run | Scr Mat Mat Sto Total 861 | 152 295 166 248 Wait 138 | . 77 3 58 Move 617 | 124 187 134 172 Hop . | . . . . Pick Up 15 | 8 3 . 4 Fast Attach 7 | . . . 7 Attach 12 | 7 2 3 . Detach 1 | . 1 . . Swap 5 | . 3 . 2 Drop 6 | . 1 1 4 Fire 40 | 13 21 5 1 Melee . | . . . . Ram 7 | . . 7 . Kick . | . . . . Crush 13 | . . 13 . Escape Stasis . | . . . . Rewire . | . . . . Trap . | . . . . Miscellaneous . | . . . . Route ------- -11/Scrapyard -10/Materials -9/Materials -9/Storage History --------- Turn | Location | Event 19 | -11/Scrapyard | Discovered new exit (range 15) 251 | -11/Scrapyard | Entered Materials 309 | -10/Materials | Build established: Mutant 561 | -10/Materials | Discovered new exit (range 11) 697 | -10/Materials | Entered another Materials area 697 | -9/Materials | Evolved 2 slots: Utility x2 901 | -9/Materials | Core integrity fell below 50% 906 | -9/Materials | Core integrity fell below 20% 914 | -9/Materials | Discovered new exit (range 11) 919 | -9/Materials | Lost 5 parts (2n1u2w) 920 | -9/Materials | Entered Storage 924 | -9/Storage | Met 01-MTF 1180 | -9/Storage | Destroyed by G-34 Mercenary with Small Laser Last Messages --------------- Integration Mediator (40%) Field Recycling Unit (56%) 01062_ 01-MTF hacks Y-45 Defender, rebooting. 01070_ W-16 Scout destroyed. 01079_ Acquired Lgt. Armor Plating. 01083_ Dropped Lgt. Treads. 01084_ Acquired 36 matter. 01086_ K-01 Serf collects debris. 01105_ Dropped Lgt. Treads. 01111_ Connecting with Terminal... >>Query(Terminal) Interactive station connected to the central network via reliable hard line. Relevant information is monitored and relayed by the terminal's Operator. Types of information accessible directly from each terminal are limited in order to mitigate the negative impacts of unauthorized access. Access is restricted by shielding the system behind multi-layered security, the first layer of which requires a dynamic key to clear without triggering defense mechanisms. 01162_ Connecting with Terminal... 01164_ K-01 Serf collects debris. Map ----- +----------------------------------------------------+ | ?????????????????????????????????????????????? | | ?????????????????????????????????????????????? | | ?????????????????????????????????????????????? | | ?????????????????????????????????????????????? | | ?????????????????????????????????????????????? | | ?????????????????????????????????????????????? | | ?#####???????????????????????????????????????? | | ?#"""#???????????????????????????????????????? | | ##"Y"###?????????????????????????????????????? | | #?????????????????????????????????????? | | #?????????????????????????????????????? | | !! #??????????????#+?????????????????????? | | !! #??????????????# ?????????????????????? | | #??????????????# ?????????????????????? | | """ #??????????????# ####?????????????????? | | """ #??????????????# ?????????????????? | | """ #??????????????# g#?????????????????? | | #??????????????# g #?????????????????? | | ###+## ##########+##### /?????????????????? | | = =%! #?????????????????? | | =%[ #?????????????????? | | * #?????????????????? | | ## #######+##+######## #?###?????????????? | | # ### p###T#"????????????? | | # = "" + "????????????? | | # "" ### @ "????????????? | | """" # T" #?# #######"????????????? | | """" # """ "" #?######???????????????????? | | """" # """ "" #??????????????????????????? | | """" # """ #??????????????????????????? | | # #??????????????????????????? | | ###################??????????????????????????? | | | | | | | | | | | | | | | | | | | | | | | | | | | | | | | | | | | | | +----------------------------------------------------+ Best States ------------- Heat Dissipation 28 Energy Generation 12 Energy Capacity 265 Matter Stores 300 Matter Capacity 300 Sight Range 18 Terrain Scan Range 16 Terrain Scan Density 60 Armor Coverage 150 Evasion (%) 50 Recoil Reduction 2 Item Schematics ----------------- None Robot Schematics ------------------ None Fabricated ------------ Nothing Alien Tech Used ----------------- None Achievements -------------- None Challenges ------------ None Game ------ Seed AluminumGravitonHammer Manual? 0 Play Time 00:12:04 Cumulative 29.7 hours Start 2020.10.04 @ 20:06:48 End 2020.10.04 @ 20:16:04 Sessions 1 Manual Loads 0 Difficulty Rogue Special Mode None Game No. 56 Rogue 56 Adventurer 0 Explorer 0 Win Type - Total 0 Types 0/0/0/0/0/0/0/0/0 Lore% 34 Gallery% 34 Achievement% 28 Wizard Run 0 Options --------- ASCII 0 Keyboard 0 Movement Numpad Keybinds 0 Fullscreen 1 Font 24/Smallcaps Map View 76x50 Tactical HUD 1 Map Filters NONE Filters NONE Steam 1 RUN: c751ff1d-423b-4eb7-9292-db74b94a9a60